Cogmind - Beta 13 @@@ ROGUE MODE // 2024.06.20 @ 17:20:48 Player: Henotu Result: Destroyed by Y-54 Guardian with Gatling Laser Performance ------------- Evolutions (4) 2000 Regions Visited (7) 1400 Robots Destroyed (15) 75 Value Destroyed (380) 380 Prototype IDs (4) 80 Alien Tech Used (0) 0 Bonus (500) 500 TOTAL SCORE: 4435 Bonus ------- Entered DSFs 500 Cogmind --------- Core Integrity 0/850 Matter 124/300 Energy 99/100 System Corruption 0% Temperature Cool (12) Movement Core (50) Location -6/Factory Parts ------- > --- POWER (3) -------- (None) > --- PROPULSION (5) --- (None) > --- UTILITY (3) ------ (None) > --- WEAPON (4) ------- (None) > --- INVENTORY (5) ---- (None) Peak State ------------ > --- POWER ------------ Ion Engine > --- PROPULSION ------- Flight Unit VTOL Module VTOL Module Nuclear Pulse Thruster > --- UTILITY ---------- Advanced Weight Redist. System Power Shielding Authchip [R/Combat] > --- WEAPON ----------- Heavy Plasma Cannon Heavy Machine Gun Light Cannon Flak Cannon > --- INVENTORY -------- Light Assault Rifle [Rating: 33] Favorites ----------- Power Ion Engine Engine Ion Engine Power Core Fission Core Propulsion Flight Unit Treads Light Treads Wheel Compact Wheel Flight Unit Flight Unit Utility Small Storage Unit Device Advanced Weight Redist. System Storage Small Storage Unit Hackware Authchip [R/Combat] Protection Power Shielding Weapon Medium Laser Energy Gun Medium Laser Energy Cannon Heavy Plasma Cannon Ballistic Gun Light Assault Rifle Ballistic Cannon Light Cannon Launcher Shock Bomb Launcher Special Weapon Mining Laser Build | -11 -10 -10 -9 -8 -7 -7 -6 ------- Run | Yrd Mat Min Mat Mat Fac DSF Fac Slots Evolved 8 | . . . 2 2 2 . 2 Power 2 | . . . . 1 1 . . Propulsion 3 | . . . 1 1 1 . . Utility 1 | . . . . . . . 1 Weapon 2 | . . . 1 . . . 1 Parts Attached 52 | 5 9 2 10 9 3 4 10 Power 12 | 1 . 1 4 2 . 1 3 Engine 11 | 1 . 1 4 2 . 1 2 Core 1 | . . . . . . . 1 Reactor . | . . . . . . . . Propulsion 14 | 2 5 . 2 2 1 1 1 Treads 4 | 2 2 . . . . . . Leg . | . . . . . . . . Wheel 1 | . 1 . . . . . . Hover . | . . . . . . . . Flight 9 | . 2 . 2 2 1 1 1 Utility 6 | 1 . . 2 1 1 . 1 Device 3 | . . . 2 . 1 . . Storage 1 | 1 . . . . . . . Processor . | . . . . . . . . Hackware 1 | . . . . . . . 1 Protection 1 | . . . . 1 . . . Artifact . | . . . . . . . . Weapon 20 | 1 4 1 2 4 1 2 5 Energy Gun 7 | 1 3 . 1 2 . . . Energy Cannon 1 | . . . . . . . 1 Ballistic Gun 4 | . . . . 1 . 1 2 Ballistic Cannon 5 | . 1 . 1 . . 1 2 Launcher 2 | . . . . 1 1 . . Special Weapon 1 | . . 1 . . . . . Impact Weapon . | . . . . . . . . Slashing Weapon . | . . . . . . . . Piercing Weapon . | . . . . . . . . Special Melee Weapon . | . . . . . . . . Unidentified Prototypes . | . . . . . . . . Parts Lost 25 | . 1 . 2 . . 7 15 Power 6 | . . . . . . 2 4 Propulsion 8 | . . . 1 . . 3 4 Utility 3 | . . . . . . . 3 Weapon 8 | . 1 . 1 . . 2 4 Highest Loss Streak 9 | . 1 . 2 . . 7 9 To Critical Strikes . | . . . . . . . . Average Slot Usage (%) 68 | . 74 66 60 86 84 70 45 Engine 8 | . 11 1 4 14 15 10 4 Treads 7 | . 19 . . . . . . Flight 18 | . 5 28 27 36 37 30 14 Device 2 | . . . 9 . 3 7 5 Storage 8 | . 14 14 11 2 . . . Hackware 1 | . . . . . . . 5 Protection 2 | . . . . 8 7 7 3 Energy Gun 10 | . 21 14 2 7 7 1 . Ballistic Cannon 3 | . 1 . 1 9 7 4 7 Special Weapon 1 | . . 8 3 . . . . Naked Turns 7 | . . . . . . . 7 Heaviest Build 27 | 12 15 8 11 22 22 27 24 Greatest Support 40 | 40 40 8 12 17 30 30 27 Greatest Overweight (x) 4 | . 4 . 1 1 . . 4 Average Overweight (x) . | . . . . . . . . Largest Inventory Capacity 8 | 8 8 8 8 8 5 5 5 Average Capacity 6 | 6 8 8 8 5 5 5 5 Most Carried 8 | 3 5 7 8 8 5 5 3 Average Carried 2 | . 1 5 5 5 3 4 . Final Capacity 8 | 8 8 8 8 5 5 5 5 Final Carried 8 | . 5 6 8 5 3 4 . Class Distribution -------------------- 63% | Mutant 21% | Sprinter 9% | Scavenger-Sprinter 3% | Scavenger-Mutant 3% | Tank Dominant Class ---------------- Mutant | -10/Materials Mutant | -10/Mines Mutant | -9/Materials Sprinter | -8/Materials Scavenger-Sprinter | -7/Factory Sprinter | -7/DSF Sprinter | -6/Factory Resources | -11 -10 -10 -9 -8 -7 -7 -6 ----------- Run | Yrd Mat Min Mat Mat Fac DSF Fac Matter Collected 581 | 234 101 . 4 202 . 35 5 Remotely . | . . . . . . . . Salvage Created 650 | . 342 . 4 201 . 103 . Parts 38 | . 15 . 2 12 . 9 . Haulers Intercepted . | . . . . . . . . Recyclers Shooed . | . . . . . . . . Parts Field Recycled . | . . . . . . . . Retrieved Matter . | . . . . . . . . Parts Self-Destructed . | . . . . . . . . Prevented . | . . . . . . . . Kills | -11 -10 -10 -9 -8 -7 -7 -6 ------- Run | Yrd Mat Min Mat Mat Fac DSF Fac Combat Hostiles Destroyed 11 | . 6 . 1 3 . 1 . Guns 8 | . 6 . . 2 . . . Cannons 2 | . . . 1 . . 1 . AOE 1 | . . . . 1 . . . Classes Destroyed 7 | . 3 . . 3 . 1 . Worker 1 | . . . . 1 . . . Recycler 2 | . 2 . . . . . . Watcher 1 | . . . . 1 . . . Swarmer 4 | . 3 . 1 . . . . Grunt 5 | . 3 . . 2 . . . Sentry 1 | . . . . 1 . . . Heavy 1 | . . . . . . 1 . Best Kill Streak 4 | . 4 . 1 3 . 1 . Combat Bots Only 3 | . 3 . 1 1 . 1 . Max Kills in Single Turn 1 | . 1 . 1 1 . 1 . Gunslinging . | . . . . . . . . Exploded 1 | . . . . 1 . . . Melee . | . . . . . . . . Uniques/NPCs Destroyed . | . . . . . . . . Combat | -11 -10 -10 -9 -8 -7 -7 -6 -------- Run | Yrd Mat Min Mat Mat Fac DSF Fac Hostile Shots Fired 279 | . 56 15 24 13 . 24 147 Missed 87 | . 15 7 11 5 . 7 42 Damage Taken 2877 | . 384 60 168 139 . 397 1729 Core 1010 | . 59 31 29 21 . 12 858 Absorbed by Shields . | . . . . . . . . Redirected to Shielding 31 | . . . . 13 . 8 10 Core Remaining (%) 90 | 100 . 64 92 96 . 98 . Volleys Fired 53 | . 18 6 6 10 . 4 9 Largest 3 | . 2 2 2 3 . 3 2 Hottest 150 | . 90 150 150 121 . 107 120 Shots Fired 102 | . 29 10 7 30 . 12 14 Gun 61 | . 29 6 3 14 . 4 5 Cannon 25 | . . . 2 10 . 4 9 Launcher 10 | . . . . 6 . 4 . Special 6 | . . 4 2 . . . . Kinetic 33 | . . . 2 14 . 8 9 Thermal 59 | . 29 10 5 10 . . 5 Explosive . | . . . . . . . . Electromagnetic 10 | . . . . 6 . 4 . Robot Hit Streak 7 | . 7 1 3 3 . 6 2 Robot Miss Streak 4 | . 3 2 2 2 . 2 4 Penetration Max . | . . . . . . . . Secondary Targets . | . . . . . . . . Shots Hit Robots 53 | . 20 1 4 11 . 9 8 Core Hits 38 | . 13 . 1 9 . 8 7 Critical Kills . | . . . . . . . . Critical Parts Destroyed . | . . . . . . . . Critical Strikes 5 | . 4 . 1 . . . . Burn 4 | . 4 . . . . . . Blast 1 | . . . 1 . . . . Melee Attacks . | . . . . . . . . Impact . | . . . . . . . . Slashing . | . . . . . . . . Piercing . | . . . . . . . . Sneak Attacks . | . . . . . . . . Combat Hostiles . | . . . . . . . . Follow-up Attacks . | . . . . . . . . Damage Inflicted 1154 | . 239 12 62 303 . 306 232 Guns 472 | . 239 12 25 64 . 43 89 Cannons 326 | . . . 37 86 . 85 118 Explosions 331 | . . . . 153 . 178 . Melee . | . . . . . . . . Ramming 25 | . . . . . . . 25 Kinetic 381 | . . . 37 113 . 128 103 Thermal 417 | . 239 12 25 37 . . 104 Explosive . | . . . . . . . . Electromagnetic 331 | . . . . 153 . 178 . Impact . | . . . . . . . . Slashing . | . . . . . . . . Piercing . | . . . . . . . . Highest Corruption 2 | . . . 2 . . . . Average Corruption 2 | . . . 2 . . . . Corruption Purged . | . . . . . . . . Corruption Blocked . | . . . . . . . . Effects 3 | . . . 3 . . . . Message Errors 1 | . . . 1 . . . . Energy Discharges 1 | . . . 1 . . . . Parts Rejected 1 | . . . 1 . . . . Overload Shots . | . . . . . . . . Overflow Damage . | . . . . . . . . Projectiles . | . . . . . . . . Explosions . | . . . . . . . . Melee . | . . . . . . . . Knockbacks 3 | . . . . 2 . . 1 Impact . | . . . . . . . . Kinetic 3 | . . . . 2 . . 1 Secondary . | . . . . . . . . Self-Inflicted Damage 43 | . . . . 20 . 11 12 Shots 3 | . . . . 2 . 1 . Rammed 4 | . . . . . . . 4 Targets Rammed 4 | . . . . . . . 4 Kicked . | . . . . . . . . Crushed . | . . . . . . . . Highest Temperature 275 | . 220 43 . 275 134 3 65 Average Temperature 69 | . 68 19 . 109 63 2 27 Received Heat Transfer 648 | . 108 . 45 54 . 12 429 Siege Activations . | . . . . . . . . Robots Corrupted . | . . . . . . . . Combat Hostiles . | . . . . . . . . Parts Fried . | . . . . . . . . Impact Corruptions . | . . . . . . . . Robots Melted . | . . . . . . . . Combat Hostiles . | . . . . . . . . Parts Melted 1 | . 1 . . . . . . Heat Transferred 1312 | . 940 37 74 111 . . 150 Parts Sabotaged . | . . . . . . . . Parts Stolen . | . . . . . . . . Parts Stripped . | . . . . . . . . Power Chain Reactions 1 | . . . . 1 . . . Alert | -11 -10 -10 -9 -8 -7 -7 -6 ------- Run | Yrd Mat Min Mat Mat Fac DSF Fac Peak Influence 230 | . 105 56 187 230 148 118 95 Initial 104 | . . 40 21 78 104 103 35 Average 65 | . 46 41 89 148 132 101 43 Maximum Alert Level 1 | . . . . 1 . . . Low Security (%) 97 | 100 100 100 100 76 100 100 100 Level 1 2 | . . . . 23 . . . Level 2 . | . . . . . . . . Level 3 . | . . . . . . . . Level 4 . | . . . . . . . . Level 5 . | . . . . . . . . High Security . | . . . . . . . . Max Security . | . . . . . . . . Squads Dispatched 7 | . 2 . 1 1 . 2 1 Investigation 2 | . 1 . . 1 . . . Extermination . | . . . . . . . . Reinforcement 5 | . 1 . 1 . . 2 1 Assault . | . . . . . . . . Garrison . | . . . . . . . . Intercept . | . . . . . . . . Searches Triggered . | . . . . . . . . Construction Impeded . | . . . . . . . . Haulers Reinforced . | . . . . . . . . Active Scanning Responses . | . . . . . . . . Cargo Convoy Interrupts . | . . . . . . . . Stealth | -11 -10 -10 -9 -8 -7 -7 -6 --------- Run | Yrd Mat Min Mat Mat Fac DSF Fac Distress Signals 4 | . 1 . 1 . . . 2 Communications Jammed . | . . . . . . . . Distress Signals . | . . . . . . . . Times Spotted 53 | . 11 3 13 5 . 7 14 Peak Tracking Total 8 | . 3 3 8 2 . 5 6 Tactical Retreats 9 | . 2 . 3 1 . . 3 Traps | -11 -10 -10 -9 -8 -7 -7 -6 ------- Run | Yrd Mat Min Mat Mat Fac DSF Fac Traps Triggered 4 | . 2 . 1 . . 1 . Indirectly 1 | . . . . . . 1 . Trap Hack Attempts . | . . . . . . . . Triggered . | . . . . . . . . Disarmed 6 | . . . . . 6 . . Reprogrammed 5 | . . . 5 . . . . Reused 1 | . . . 1 . . . . Traps Extracted . | . . . . . . . . Installed . | . . . . . . . . Triggered 2 | . . . 1 . . 1 . Machines | -11 -10 -10 -9 -8 -7 -7 -6 ---------- Run | Yrd Mat Min Mat Mat Fac DSF Fac Machines Disabled . | . . . . . . . . Max in Single Turn . | . . . . . . . . Machines Repaired . | . . . . . . . . Machines Dismantled . | . . . . . . . . Machines Sabotaged . | . . . . . . . . Overloaded Fab Kills . | . . . . . . . . Hacking | -11 -10 -10 -9 -8 -7 -7 -6 --------- Run | Yrd Mat Min Mat Mat Fac DSF Fac Machines Accessed 13 | . 1 . 3 3 5 . 1 Terminals 10 | . 1 . 3 1 4 . 1 Fabricators 1 | . . . . . 1 . . Repair Stations . | . . . . . . . . Recycling Units 2 | . . . . 2 . . . Scanalyzers . | . . . . . . . . Garrison Access . | . . . . . . . . Total Hacks 28 | . 4 . 6 7 10 . 1 Successful 19 | . 2 . 4 6 6 . 1 Failed 9 | . 2 . 2 1 4 . . Catastrophic 3 | . . . 1 . 2 . . Database Lockouts . | . . . . . . . . Manual 3 | . 2 . . . 1 . . Terminals 20 | . 4 . 6 2 7 . 1 Fabricators 3 | . . . . . 3 . . Repair Stations . | . . . . . . . . Recycling Units 5 | . . . . 5 . . . Scanalyzers . | . . . . . . . . Garrison Access . | . . . . . . . . Terminal Hacks 14 | . 2 . 4 2 5 . 1 Record 4 | . 1 . 1 . 2 . . Robot Schematic 1 | . . . . . 1 . . Prototype ID Bank 2 | . . . 1 1 . . . Open DSF 1 | . . . . . 1 . . Alert Level 1 | . . . . 1 . . . Disarm Traps 1 | . . . . . 1 . . Reprogram Traps 1 | . . . 1 . . . . Investigation Status 1 | . . . 1 . . . . Hauler Manifests 1 | . 1 . . . . . . Zone Layout 1 | . . . . . . . 1 Fabricator Hacks 1 | . . . . . 1 . . Load Schematic 1 | . . . . . 1 . . Repair Station Hacks . | . . . . . . . . Recycling Unit Hacks 4 | . . . . 4 . . . Process 1 | . . . . 1 . . . Report Inventory 2 | . . . . 2 . . . Retrieve Components 1 | . . . . 1 . . . Scanalyzer . | . . . . . . . . Garrison Access Hacks . | . . . . . . . . Unauthorized Hacks . | . . . . . . . . Terminals . | . . . . . . . . Fabricators . | . . . . . . . . Repair Stations . | . . . . . . . . Recycling Units . | . . . . . . . . Scanalyzers . | . . . . . . . . Garrison Access . | . . . . . . . . Data Cores Recovered . | . . . . . . . . Used . | . . . . . . . . Hacking Detections 8 | . 1 . 3 2 2 . . Full Trace Events 2 | . 1 . . 1 . . . Feedback Events . | . . . . . . . . Feedback Blocked . | . . . . . . . . Robot Schematics Acquired 1 | . . . . . 1 . . Robots Built . | . . . . . . . . Authchips . | . . . . . . . . Time . | . . . . . . . . Total Robot Build Rating . | . . . . . . . . Part Schematics Acquired . | . . . . . . . . Parts Built . | . . . . . . . . Authchips . | . . . . . . . . Time . | . . . . . . . . Total Part Build Rating . | . . . . . . . . Parts Repaired . | . . . . . . . . Time . | . . . . . . . . Parts Recycled . | . . . . . . . . Recycled Matter 3 | . . . . 3 . . . Retrieved Matter . | . . . . . . . . Retrieved Components 3 | . . . . 3 . . . Parts Scanalyzed . | . . . . . . . . Part Schematics Acquired . | . . . . . . . . Parts Damaged . | . . . . . . . . Bothacking | -11 -10 -10 -9 -8 -7 -7 -6 ------------ Run | Yrd Mat Min Mat Mat Fac DSF Fac Used RIF Installer . | . . . . . . . . Robots Hacked . | . . . . . . . . Non-combat . | . . . . . . . . Combat . | . . . . . . . . Robot Hacks Applied . | . . . . . . . . Relay Couplers Released . | . . . . . . . . Fabnet Peak Effective % . | . . . . . . . . Robots Rewired . | . . . . . . . . Allies Hacked . | . . . . . . . . Hacks Repelled . | . . . . . . . . Allies | -11 -10 -10 -9 -8 -7 -7 -6 -------- Run | Yrd Mat Min Mat Mat Fac DSF Fac Total Allies 1 | . . 1 . . . . . Largest Group 1 | . . 1 . . . . . Highest-Rated Group 31 | . . 31 . . . . . Highest-Rated Ally 31 | . . 31 . . . . . Total Orders . | . . . . . . . . Ally Attacks . | . . . . . . . . Total Damage . | . . . . . . . . Kills . | . . . . . . . . Allies Corrupted . | . . . . . . . . Allies Melted . | . . . . . . . . Intel | -11 -10 -10 -9 -8 -7 -7 -6 ------- Run | Yrd Mat Min Mat Mat Fac DSF Fac Robot Analysis Total . | . . . . . . . . Derelict Logs Recovered 1 | . . 1 . . . . . Drone Launches . | . . . . . . . . Drone Recoveries . | . . . . . . . . Exploration | -11 -10 -10 -9 -8 -7 -7 -6 ------------- Run | Yrd Mat Min Mat Mat Fac DSF Fac Turns Passed 1484 | 78 537 124 153 141 106 50 295 Spaces Moved 2206 | 57 493 236 284 239 406 106 385 Core 124 | 20 9 . . . . . 95 Treads 244 | 37 207 . . . . . . Legs . | . . . . . . . . Wheels 9 | . 9 . . . . . . Hover . | . . . . . . . . Flight 1829 | . 268 236 284 239 406 106 290 Fastest Speed 25 | 50 37 37 32 27 25 25 28 Average Speed 50 | 121 93 37 36 34 25 26 46 Slowest Speed 250 | 160 250 37 117 110 27 30 250 Overloaded Moves . | . . . . . . . . Propulsion Burnouts . | . . . . . . . . Robots Hopped 7 | . 2 1 1 . 1 . 2 Cave-ins Triggered . | . . . . . . . . Exploration Rate (%) 32 | 4 55 43 27 16 11 88 13 Regions Visited 7 Branch Regions 1 Pre-discovered Areas . | . . . . . . . . Known Exits Taken 2 | . . 1 . . 1 . . Unknown Exits Taken 4 | 1 1 . 1 1 . . . Scrap Searched . | . . . . . . . . Spaces Dug 1 | . . . 1 . . . . Terrain Destroyed 14 | . . 1 1 10 . . 2 Melee . | . . . . . . . . Projectile 4 | . . 1 1 . . . 2 AOE 10 | . . . . 10 . . . Terrain Rammed . | . . . . . . . . Walls Destroyed . | . . . . . . . . Machines Disabled . | . . . . . . . . Actions | -11 -10 -10 -9 -8 -7 -7 -6 --------- Run | Yrd Mat Min Mat Mat Fac DSF Fac Total 2474 | 66 541 253 324 280 408 120 482 Wait 97 | . 2 8 13 4 . . 70 Move 2186 | 56 489 233 281 238 403 105 381 Hop 6 | . 1 1 1 . 1 . 2 Pick Up 47 | 5 13 2 7 8 1 5 6 Fast Attach . | . . . . . . . . Attach 52 | 5 9 2 10 9 3 4 10 Detach 14 | . 5 1 5 3 . . . Swap . | . . . . . . . . Drop 15 | . 4 . 1 8 . 2 . Fire 53 | . 18 6 6 10 . 4 9 Melee . | . . . . . . . . Ram 4 | . . . . . . . 4 Kick . | . . . . . . . . Crush . | . . . . . . . . Escape Stasis . | . . . . . . . . Rewire . | . . . . . . . . Trap . | . . . . . . . . Miscellaneous . | . . . . . . . . Route ------- -11/Scrapyard -10/Materials (discovered 2 exits: *Mat / [*Min]) -10/Mines (discovered 2 exits: *Mat x2) -9/Materials -8/Materials -7/Factory (discovered 2 exits: *Fac / DSF) -7/DSF -6/Factory History --------- Turn | Location | Event 5 | -11/Scrapyard | Discovered new exit (range 13) 79 | -11/Scrapyard | Entered Materials 222 | -10/Materials | Discovered new exit (range 7) 311 | -10/Materials | Build established: Mutant 527 | -10/Materials | Discovered new exit (range 14) 616 | -10/Materials | Entered Mines 660 | -10/Mines | Received a Mining Laser from a helpful Derelict 731 | -10/Mines | Identified exit to Materials 731 | -10/Mines | Discovered exit to Materials (range 5) 740 | -10/Mines | Entered Materials 740 | -9/Materials | Evolved 2 slots: Propulsion x1, Weapon x1 889 | -9/Materials | Discovered new exit (range 10) 893 | -9/Materials | Entered another Materials area 893 | -8/Materials | Evolved 2 slots: Power x1, Propulsion x1 1018 | -8/Materials | Discovered new exit (range 16) 1034 | -8/Materials | Entered Factory 1034 | -7/Factory | Evolved 2 slots: Power x1, Propulsion x1 1138 | -7/Factory | Discovered new exit (range 8) 1139 | -7/Factory | Identified exit to DSF 1140 | -7/Factory | Entered DSF 1154 | -7/DSF | Additional patrols routed to DSF 1186 | -7/DSF | Discovered new exit (range 16) 1190 | -7/DSF | Entered Factory 1190 | -6/Factory | Evolved 2 slots: Utility x1, Weapon x1 1220 | -6/Factory | Lost 7 parts (2p3n2w) 1344 | -6/Factory | Spotted B-75 Beast 1433 | -6/Factory | Lost 9 parts (1p4n1u3w) 1435 | -6/Factory | Core integrity fell below 50% 1475 | -6/Factory | Core integrity fell below 20% 1485 | -6/Factory | Destroyed by Y-54 Guardian with Gatling Laser Last Messages --------------- Slug penetrates Terminal. Lgt. Deuterium Engine destroyed. Acquired Imp. Deuterium Engine. Slug penetrates Wall. Lgt. Assault Rifle destroyed. Slammed into G-50 Soldier. Authchip [R/Combat] destroyed. Slammed into G-50 Soldier. Imp. Deuterium Engine destroyed. Slug penetrates G-50 Soldier. Slammed into G-50 Soldier. Penetrated by Slug. Adv. Weight Redist. System destroyed. K-01 Serf cleans the Terminal. Acquired Fission Core. Slug penetrates Wall. Penetrated by Slug. Slug penetrates Wall. Penetrated by Slug. Fission Core destroyed. Map ----- +----------------------------------------------------+ | ?????????????????????????????????????????????????? | | ?????????????????????????????????????????????????? | | ?????????????????????????????????????????????????? | | ?????????????????????????????????????????????????? | | ?????????????????????????????????????????????????? | | ?????????????????????????????????????????????????? | | ?????????????????????????????????????????????????? | | ?????????????????????????????????????????????????? | | ?????????????????????????????????????????????????? | | ?????????????????????????????????????????????????? | | ?????????????????????????????????????????????????? | | ?????????????????????# ?????????????????????????? | | ?????????????????????# ????????????????????????? | | ?????????????????????# ????????????????????????? | | ?????????????????????# ????????????????????????? | | ?????????????????????# #???????????????????????? | | # """ #??????# +???????????????????????? | | + #??????# #???????????????????????? | | # """ """ #??????# #???????????????????????? | | # """ """ #??????# #???????????????????????? | | # """ """ #??????#A #???????????????????????? | | # #??????# #???????????????????????? | | # #?????## ##??????????????????????? | | #################### #??????????????????????? | | ###### #?????????????? | | @ Y #?????????????? | | pYk ###### ! #?????????????? | | ################ ### #??????????????????????? | | ######## ## #####+#####????????????????????? | | # # ## ##[ #????????????????????? | | # """ # ## ## """ #????????????????????? | | # "T" # ## ## """ #????????????????????? | | # " " ####+#### / """ +????????????????????? | | # # #?# # #????????????????????? | | ## """ # "T ### # """ #????????????????????? | | ?# """ + "" + """ #????????????????????? | | ?# """ # ###### """ #????????????????????? | | ## # =#????#! #????????????????????? | | + """ #######????##########????????????????????? | | ## """ #????????????????????????????????????????? | | ?# """ #????????????????????????????????????????? | | ?# #????????????????????????????????????????? | | ?##+###############??????????????????????????????? | | ### ## #??????????????????????????????? | | ## """ """ ###????????????????????????????? | | ## """ """ ? ????????????????????????????? | | ## """ """ ###????????????????????????????? | | #????????????????????????????????????????????? | | ########?????????????????????????????????????? | | #??????????????????????????????????? | +----------------------------------------------------+ Best States ------------- Heat Dissipation 50 Energy Generation 18 Energy Capacity 310 Matter Stores 300 Matter Capacity 300 Sight Range 16 Terrain Scan Density 10 Additional Mass Support 9 Power Shielding 33 Evasion (%) 65 Recoil Reduction 2 Authchip Count 1 Item Schematics ----------------- None Robot Schematics ------------------ K-01 Serf | -7/Factory | Hacked Fabricated ------------ Nothing Alien Tech Used ----------------- None Achievements -------------- Can't Catch Me Challenges ------------ None Game ------ Seed SystemTachyonLoader Manual? 0 Play Time 00:37:37 Cumulative 2.5 hours Start 2024.06.19 @ 18:27:08 End 2024.06.20 @ 17:20:48 Sessions 3 Manual Loads 0 Difficulty Rogue Special Mode None Game No. 4 Rogue 4 Adventurer 0 Explorer 0 Win Type - Total 0 Types 0/0/0/0/0/0/0/0/0 Lore% 1 Gallery% 7 Achievement% 6 Wizard Run 0 Options --------- Layout 1 ASCII 0 Keyboard 1 Movement Arrows Keybinds 0 Fullscreen 1 Font 24/Smallcaps Map View 50x35 Zoom Use 0% Tactical HUD 0 Map Filters NONE Filters NONE Steam 1 RUN: 012ec1dc-d111-4ca3-b07e-ca280c504018